bitfinex/quotes_SOLUSD_20250903
["timestamp","ask_amount","ask_price","bid_price","bid_amount"]
[1756919208432,11.55561525,210.44,210.41,0.03]
[1756919208642,2.98269129,210.42,210.41,0.03]
[1756919209145,3.64269129,210.42,210.41,0.03]
[1756919210157,8.39509125,210.42,210.41,0.03]
[1756919213545,3.64269129,210.42,210.41,0.03]
[1756919214546,8.39509125,210.42,210.41,0.03]
[1756919215928,11.55989064,210.42,210.41,0.03]
[1756919217441,11.55989064,210.42,210.4,0.03]
[1756919217641,32.14749068,210.41,210.4,0.03]
[1756919217825,36.9001165,210.41,210.4,0.03]
[1756919218025,37.5601165,210.41,210.4,0.03]
[1756919218331,2.98269129,210.41,210.4,0.72]
[1756919218529,2.98269129,210.42,210.4,0.72]
[1756919218726,2.98269129,210.44,210.4,0.72]
[1756919218932,2.98269129,210.43,210.4,0.72]
[1756919220039,2.98269129,210.44,210.41,4.75262582]
[1756919220373,2.98269129,210.44,210.42,0.69]
[1756919220538,0.06,210.46,210.42,0.69]
[1756919220730,3.04269129,210.46,210.42,0.69]
[1756919220933,0.06,210.46,210.42,0.69]
[1756919221153,0.06,210.46,210.43,2.98269129]
[1756919221329,0.06,210.46,210.44,0.69]
[1756919222149,0.06,210.46,210.45,4.75172249]
[1756919222530,3.70269129,210.46,210.4,0.72]
[1756919222730,2.98269129,210.42,210.4,5.47284415]
[1756919223233,2.98269129,210.42,210.41,0.69]
[1756919223834,2.98269129,210.42,210.4,0.03]
[1756919224459,2.98269129,210.43,210.4,0.03]
[1756919224948,2.98269129,210.42,210.4,0.03]
[1756919225562,3.64269129,210.41,210.4,0.03]
[1756919228733,6.81353428,210.41,210.4,0.03]
[1756919229243,11.56637691,210.41,210.4,0.03]
[1756919229443,6.81375109,210.41,210.4,0.03]
[1756919230760,11.56637691,210.41,210.4,0.03]
[1756919231249,6.81375109,210.41,210.4,0.03]
[1756919232459,26.0,210.44,210.4,0.03]
[1756919232632,2.98269129,210.41,210.4,0.03]
[1756919233475,3.68269129,210.41,210.4,0.03]
[1756919233630,2.98269129,210.41,210.4,0.03]
[1756919233834,3.68269129,210.41,210.4,0.03]
[1756919237450,5.36487805,210.41,210.4,0.03]
[1756919238369,4.66487805,210.41,210.4,0.03]
[1756919238857,5.36487805,210.41,210.4,0.03]
[1756919239663,4.66487805,210.41,210.4,0.03]
[1756919239859,0.06,210.46,210.4,0.75]
[1756919240159,4.66487805,210.44,210.4,0.75]
[1756919240346,0.06,210.46,210.4,0.75]
[1756919240544,4.66487805,210.44,210.4,0.75]
[1756919241245,4.66487805,210.44,210.41,4.75262582]
[1756919241778,4.66487805,210.44,210.42,0.72]
[1756919242055,4.66487805,210.43,210.41,4.75262582]
[1756919242259,4.66487805,210.43,210.41,5.47262582]
[1756919242463,0.76,210.46,210.41,5.47262582]
[1756919242759,4.66487805,210.43,210.41,5.47262582]
[1756919243137,4.66487805,210.44,210.41,5.47262582]
[1756919243662,4.66487805,210.44,210.42,0.72]
[1756919244159,0.06,210.46,210.43,0.72]
[1756919244543,0.06,210.46,210.44,4.66487805]
[1756919245151,0.06,210.46,210.45,5.47172249]
[1756919245360,0.06,210.46,210.45,10.13660054]
[1756919246559,0.06,210.46,210.45,24.01651769]
[1756919246856,1e-08,210.46,210.45,24.58672438]
[1756919247049,1e-08,210.48,210.46,13.87991715]
[1756919247244,1e-08,210.48,210.47,42.23503056]
[1756919247446,1e-08,210.48,210.47,42.95503056]
[1756919249149,1e-08,210.48,210.47,47.70630152]
[1756919252648,1e-08,210.49,210.48,23.20967325]
[1756919252843,1e-08,210.49,210.48,23.92967325]
[1756919253153,1e-08,210.53,210.48,23.92967325]
[1756919253353,1e-08,210.53,210.52,18.5447952]
[1756919253552,1e-08,210.53,210.52,56.0748123]
[1756919253748,1e-08,210.53,210.52,56.7948123]
[1756919254761,0.70000001,210.53,210.5,4.75059382]
[1756919255069,0.70000001,210.53,210.52,36.98]
[1756919255372,5.36487806,210.53,210.48,4.66487805]
[1756919255566,0.7,210.52,210.49,36.98]
[1756919256468,0.7,210.52,210.5,4.75059382]
[1756919256850,0.7,210.51,210.5,4.75059382]
[1756919257052,0.7,210.51,210.5,41.73059382]
[1756919257573,5.36487806,210.53,210.5,41.73059382]
[1756919257774,0.70000001,210.53,210.5,41.73059382]
[1756919258477,0.7,210.52,210.5,41.73059382]
[1756919258675,0.7,210.52,210.47,0.72]
[1756919258676,0.7,210.51,210.47,4.75127096]
[1756919258973,4.66487806,210.53,210.48,37.68]
[1756919259346,5.36487805,210.52,210.48,36.96]
[1756919259546,0.7,210.51,210.48,36.96]
[1756919260557,0.7,210.51,210.49,4.75081951]
[1756919261151,4.66487805,210.52,210.49,4.75081951]
[1756919261351,0.7,210.51,210.49,4.75081951]
[1756919261767,1e-08,210.53,210.5,4.66487805]
[1756919262068,1e-08,210.53,210.52,4.66487805]
[1756919262657,1e-08,210.53,210.52,0.66]
[1756919262972,1e-08,210.53,210.52,5.32487805]
[1756919263269,1e-08,210.53,210.52,4.66487805]
[1756919263572,1e-08,210.53,210.52,5.32487805]
[1756919263777,1e-08,210.53,210.52,10.07502055]
[1756919264251,1e-08,210.53,210.52,9.41502055]
[1756919265271,1e-08,210.53,210.52,10.07502055]
[1756919266055,1e-08,210.53,210.52,9.41502055]
[1756919267562,1e-08,210.53,210.52,10.07502055]
[1756919268164,1e-08,210.53,210.52,24.5249548]
[1756919270076,1e-08,210.53,210.52,23.2949377]
[1756919270262,1e-08,210.53,210.52,9.41502055]
[1756919270469,1e-08,210.53,210.52,41.6301425]
[1756919270666,1e-08,210.53,210.52,46.29502055]
[1756919270848,1e-08,210.53,210.52,46.95502055]
[1756919271053,1e-08,210.53,210.52,60.8349377]
[1756919271260,1e-08,210.53,210.52,46.29502055]
[1756919272274,1e-08,210.53,210.52,60.1749377]
[1756919276782,0.69000001,210.53,210.52,41.6301425]
[1756919277372,0.69000001,210.53,210.52,4.7501425]
[1756919277679,0.69000001,210.53,210.52,41.6301425]
[1756919278682,1e-08,210.53,210.52,41.6301425]
[1756919280773,0.69000001,210.53,210.51,0.03]
[1756919280973,1e-08,210.53,210.52,36.88]
[1756919281185,1e-08,210.53,210.51,0.03]
[1756919281366,4.66487806,210.53,210.52,36.9]
[1756919281565,1e-08,210.53,210.52,36.9]
[1756919281779,4.66487806,210.53,210.52,36.9]
[1756919282085,0.69000001,210.53,210.52,36.9]
[1756919284282,0.69000001,210.53,210.52,41.6501425]
[1756919284593,1e-08,210.53,210.52,41.6501425]
[1756919284967,0.69000001,210.53,210.52,36.9]
[1756919285897,5.35487806,210.53,210.52,36.9]
[1756919286489,1e-08,210.53,210.52,42.22487805]
[1756919287180,1e-08,210.53,210.52,46.97502055]
[1756919289179,1e-08,210.53,210.52,61.4249548]
[1756919293202,1e-08,210.53,210.52,19.86007675]
[1756919293390,1e-08,210.53,210.52,61.4049548]
[1756919295000,1e-08,210.53,210.52,56.74007675]
[1756919295203,1e-08,210.53,210.52,61.4049548]
[1756919296610,1e-08,210.53,210.52,24.5249548]
[1756919296793,1e-08,210.53,210.52,61.4049548]
[1756919297881,1e-08,210.55,210.54,39.87991715]
[1756919298077,1e-08,210.55,210.54,81.99475815]
[1756919298287,1e-08,210.55,210.54,82.66475815]
[1756919298999,1e-08,210.55,210.54,87.41444942]
[1756919299509,1e-08,210.55,210.54,85.72835156]
[1756919301411,1e-08,210.55,210.54,85.05835156]
[1756919302202,1e-08,210.55,210.54,85.72835156]
[1756919302505,1e-08,210.55,210.54,18.62960842]
[1756919302709,0.70000001,210.55,210.54,41.62969127]
[1756919304291,0.70000001,210.55,210.53,18.62983402]
[1756919304491,1e-08,210.55,210.54,36.88]
[1756919305502,0.70000001,210.55,210.54,36.88]
[1756919306010,1e-08,210.55,210.54,36.88]
[1756919306207,0.70000001,210.55,210.54,36.88]
[1756919306511,0.70000001,210.55,210.54,44.60847146]
[1756919306807,0.70000001,210.55,210.54,41.62969127]
[1756919307315,0.70000001,210.55,210.54,36.88]
[1756919309117,3.6787802,210.55,210.54,36.88]
[1756919311224,0.70000001,210.55,210.54,36.88]
[1756919311520,3.6787802,210.55,210.54,36.88]
[1756919312930,3.6787802,210.55,210.53,36.88]
[1756919313102,2.9787802,210.55,210.53,36.88]
[1756919313422,3.67878019,210.54,210.53,36.88]
[1756919313795,2.97878019,210.54,210.53,36.88]
[1756919314117,3.67878019,210.54,210.51,0.03]
[1756919314332,2.97878019,210.52,210.51,0.03]
[1756919314625,2.97878019,210.52,210.51,36.91]
[1756919314827,0.7,210.52,210.51,36.91]
[1756919315001,3.67878019,210.52,210.51,36.91]
[1756919316626,3.67878019,210.52,210.51,0.03]
[1756919316828,3.67878019,210.52,210.51,36.91]
[1756919317214,0.7,210.52,210.51,36.91]
[1756919317416,3.67878019,210.52,210.51,36.91]
[1756919318718,0.7,210.52,210.51,36.91]
[1756919319030,3.67878019,210.52,210.51,36.91]
[1756919320336,1e-08,210.55,210.51,36.91]
[1756919320517,2.97878019,210.54,210.51,37.58]
[1756919320829,0.70000001,210.55,210.51,42.33036585]
[1756919321021,1e-08,210.55,210.52,0.67]
[1756919321327,0.7,210.54,210.53,36.88]
[1756919321530,3.67878019,210.54,210.53,36.88]
[1756919321731,2.97878019,210.54,210.53,36.88]
[1756919321933,1e-08,210.55,210.53,36.88]
[1756919321934,2.9787802,210.55,210.53,36.88]
[1756919322134,3.6487802,210.55,210.53,36.88]
[1756919323730,0.67,210.54,210.53,36.88]
[1756919324619,2.9787802,210.55,210.53,36.88]
[1756919324818,3.6487802,210.55,210.53,36.88]
[1756919325334,2.9787802,210.55,210.53,36.88]
[1756919325936,3.6487802,210.55,210.53,36.88]
[1756919326116,1e-08,210.55,210.54,0.69]
[1756919326307,2.9787802,210.55,210.53,36.88]
[1756919326727,0.67,210.54,210.53,36.88]
[1756919326938,2.9787802,210.55,210.53,36.88]
[1756919327623,2.9787802,210.55,210.53,41.62983653]
[1756919328032,2.9787802,210.55,210.53,36.88]
[1756919328434,3.6487802,210.55,210.53,36.88]
[1756919329337,1e-08,210.55,210.53,41.62990545]
[1756919329547,1e-08,210.55,210.54,0.69]
[1756919330823,3.6487802,210.55,210.51,0.03]
[1756919331026,3.64878019,210.54,210.53,36.88]
[1756919331616,2.97878019,210.54,210.53,36.88]
[1756919332442,2.97878019,210.54,210.53,36.91]
[1756919334545,2.9787802,210.55,210.53,36.91]
[1756919334841,3.6487802,210.55,210.53,36.91]
[1756919335451,2.9787802,210.55,210.53,37.6]
[1756919335646,1e-08,210.55,210.53,37.6]
[1756919335951,1e-08,210.55,210.53,36.91]
[1756919336236,3.64878019,210.54,210.53,36.91]
[1756919336634,1e-08,210.55,210.53,36.91]
[1756919336836,3.6487802,210.55,210.53,36.91]
[1756919338545,2.9787802,210.55,210.53,36.91]
[1756919338947,2.9787802,210.55,210.53,37.6]
[1756919339149,1e-08,210.55,210.53,37.6]
[1756919339440,2.97878019,210.54,210.53,36.91]
[1756919339845,1e-08,210.55,210.53,36.91]
[1756919340426,2.97878019,210.54,210.53,36.91]
[1756919340947,1e-08,210.55,210.53,36.91]
[1756919341136,2.97878019,210.54,210.53,36.91]
[1756919341648,2.9787802,210.55,210.53,36.91]
[1756919342652,1e-08,210.55,210.53,36.91]
[1756919342836,3.6487802,210.55,210.53,36.91]
[1756919343149,3.6487802,210.55,210.53,0.03]
[1756919343444,0.67000001,210.55,210.53,0.03]
[1756919343954,2.97878019,210.54,210.53,0.03]
[1756919344451,1e-08,210.55,210.53,0.03]
[1756919344647,2.9787802,210.55,210.53,0.03]
[1756919345146,2.9787802,210.55,210.53,36.91]
[1756919348045,2.9787802,210.55,210.53,0.03]
[1756919348252,3.18628456,210.54,210.53,0.03]
[1756919349163,2.9787802,210.55,210.53,0.03]
[1756919350462,3.18762083,210.54,210.53,0.03]
[1756919355767,3.84762083,210.54,210.53,0.03]
[1756919355966,6.82640102,210.54,210.53,0.03]
[1756919356274,11.57609229,210.54,210.53,0.03]
[1756919356942,37.57609229,210.54,210.53,0.03]
[1756919357141,39.4802648,210.54,210.53,0.03]
[1756919359304,29.18762083,210.54,210.53,0.03]
[1756919360572,3.18762083,210.54,210.53,0.03]
[1756919362092,3.18762083,210.54,210.53,0.73]
[1756919363493,1e-08,210.55,210.53,0.73]
[1756919363791,3.18796011,210.54,210.53,0.73]
[1756919363967,3.18796011,210.54,210.53,0.03]
[1756919364574,8.50577817,210.54,210.53,0.03]
[1756919365091,7.84577817,210.54,210.53,0.03]
[1756919365591,8.50577817,210.54,210.53,0.03]
[1756919365770,7.84577817,210.54,210.53,0.03]
[1756919366494,3.18796011,210.54,210.53,0.03]
[1756919366669,8.50577817,210.54,210.53,0.03]
[1756919367197,8.50629192,210.54,210.53,0.03]
[1756919367367,7.84629192,210.54,210.53,0.03]
[1756919368279,8.50629192,210.54,210.53,0.03]
[1756919370292,7.84629192,210.54,210.53,0.03]
[1756919371589,8.50629192,210.54,210.53,0.03]
[1756919371989,13.25598319,210.54,210.53,0.03]
[1756919373200,8.50629192,210.54,210.53,0.03]
[1756919373584,13.25598319,210.54,210.53,0.03]
[1756919374975,8.59816513,210.54,210.53,0.03]
[1756919375174,13.25598319,210.54,210.53,0.03]
[1756919376195,8.59816513,210.54,210.53,0.03]
[1756919376391,13.25598319,210.54,210.53,0.03]
[1756919376594,7.84629192,210.54,210.53,0.03]
[1756919377093,8.50629192,210.54,210.53,0.03]
[1756919377281,13.25598319,210.54,210.53,0.03]
[1756919378202,15.16006506,210.54,210.53,0.03]
[1756919380093,10.502247,210.54,210.53,0.03]
[1756919380300,15.16006506,210.54,210.53,0.03]
[1756919381802,146.66006506,210.54,210.53,0.03]
[1756919382006,150.64565739,210.54,210.53,0.03]
[1756919382608,164.52557454,210.54,210.53,0.03]
[1756919382907,160.53998221,210.54,210.53,0.03]
[1756919383113,13.87991715,210.53,210.51,0.03]
[1756919383310,48.71025968,210.52,210.51,0.03]
[1756919383480,49.43025968,210.52,210.51,0.03]
[1756919383680,56.08493735,210.52,210.51,0.03]
[1756919384390,65.98088674,210.52,210.51,0.03]
[1756919385499,47.44315153,210.52,210.51,0.03]
[1756919385680,52.10096959,210.52,210.51,0.03]
[1756919386783,15.22096959,210.52,210.51,0.03]
[1756919386985,52.10096959,210.52,210.51,0.03]
[1756919388187,41.22096959,210.52,210.51,0.03]
[1756919388390,15.22096959,210.52,210.51,0.03]
[1756919389491,9.84315153,210.52,210.51,0.03]
[1756919389683,5.09300903,210.52,210.51,0.03]
[1756919389888,9.75082709,210.52,210.51,0.03]
[1756919390195,35.75082709,210.52,210.51,0.03]
[1756919390590,40.50096959,210.52,210.51,0.03]
[1756919390907,41.22096959,210.52,210.51,0.03]
[1756919391989,35.84315153,210.52,210.51,0.03]
[1756919392191,40.50096959,210.52,210.51,0.03]
[1756919392397,33.84629192,210.52,210.51,0.03]
[1756919393605,33.84629192,210.52,210.51,0.73]
[1756919394010,33.84629192,210.52,210.51,0.03]
[1756919394703,39.31643442,210.52,210.51,0.03]
[1756919395310,41.22069759,210.52,210.51,0.03]
[1756919397731,35.84287953,210.52,210.51,0.03]
[1756919397897,35.75055509,210.52,210.51,0.73]
[1756919398304,33.84629192,210.52,210.51,0.73]
[1756919399019,33.84629192,210.52,210.51,0.03]
[1756919399600,39.31643442,210.52,210.51,0.03]
[1756919400118,33.93861636,210.52,210.51,0.03]
[1756919400304,38.59643442,210.52,210.51,0.03]
[1756919400623,33.84629192,210.52,210.51,0.73]
[1756919400925,3.18847386,210.52,210.51,0.73]
[1756919401323,0.06,210.53,210.51,5.38781806]
[1756919401621,1e-08,210.55,210.52,4.65781806]
[1756919401802,1e-08,210.55,210.54,4.74969127]
[1756919402321,1e-08,210.55,210.54,5.44969127]
[1756919402617,1e-08,210.55,210.54,10.10750933]
[1756919403711,1e-08,210.55,210.54,0.7]
[1756919408515,1e-08,210.55,210.54,10.10750933]
[1756919408924,1e-08,210.55,210.54,12.01086637]
[1756919410233,1e-08,210.55,210.54,7.35304831]
[1756919413307,1e-08,210.55,210.54,5.44969127]
[1756919414406,5.33781807,210.55,210.53,1.90335705]
[1756919414606,5.33781807,210.55,210.52,4.75010329]
[1756919415025,4.65781806,210.53,210.51,0.03]
[1756919415328,4.65781806,210.52,210.51,0.03]
[1756919419036,0.06,210.53,210.51,0.03]
[1756919419540,4.71781806,210.53,210.51,0.03]
[1756919421443,3.04133751,210.53,210.51,0.03]
[1756919423333,3.72133751,210.53,210.51,0.03]
[1756919425238,2.98133751,210.52,210.51,0.03]
[1756919425925,0.74,210.53,210.51,0.03]
[1756919426126,2.98133751,210.52,210.51,0.03]
[1756919426329,0.06,210.53,210.52,0.67]
[1756919426825,0.06,210.53,210.51,0.03]
[1756919427026,0.06,210.53,210.51,0.7]
[1756919427222,0.06,210.53,210.51,0.03]
[1756919427919,0.06,210.53,210.51,4.78036815]
[1756919428535,0.06,210.53,210.51,5.45036815]
[1756919430568,0.06,210.53,210.51,3.01133751]
[1756919430738,0.06,210.53,210.52,0.67]
[1756919431124,0.06,210.53,210.51,3.01133751]
[1756919431342,0.06,210.53,210.52,3.65133751]
[1756919431651,0.06,210.53,210.52,0.67]
[1756919432353,0.06,210.53,210.52,5.4201425]
[1756919434131,0.06,210.53,210.52,8.40148001]
[1756919434331,0.06,210.53,210.52,5.4201425]
[1756919434652,0.74,210.53,210.52,41.6101425]
[1756919435349,3.72133751,210.53,210.51,0.03]
[1756919435557,0.68,210.52,210.51,36.89]
[1756919436331,0.06,210.53,210.51,36.89]
[1756919436629,0.74,210.53,210.51,36.89]
[1756919437736,0.06,210.53,210.51,42.31031371]
[1756919437948,0.06,210.53,210.51,41.64031371]
[1756919438154,0.06,210.53,210.51,42.31031371]
[1756919438358,0.06,210.53,210.51,5.45031371]
[1756919438552,0.06,210.53,210.51,42.31031371]
[1756919439358,0.06,210.53,210.52,3.65133751]
[1756919440043,0.06,210.53,210.52,8.40148001]
[1756919440547,0.06,210.53,210.52,4.7501425]
[1756919440753,0.06,210.53,210.52,41.5901425]
[1756919441063,0.06,210.53,210.52,45.24148001]
[1756919442267,0.06,210.53,210.52,42.2601425]
[1756919443261,0.06,210.53,210.52,5.4201425]
[1756919443554,0.06,210.53,210.52,42.2601425]
[1756919443762,0.06,210.53,210.52,45.24148001]
[1756919445940,0.06,210.53,210.52,4.7501425]
[1756919446262,0.06,210.53,210.52,41.5901425]
[1756919448263,0.06,210.53,210.52,45.25148001]
[1756919449260,0.06,210.53,210.52,59.13139716]
[1756919449849,0.06,210.53,210.52,59.16139716]
[1756919450754,1e-08,210.53,210.52,85.16139716]
[1756919450944,1e-08,210.53,210.52,59.16139716]
[1756919451453,1e-08,210.53,210.52,56.18005965]
[1756919451651,1e-08,210.53,210.52,61.064392]
[1756919452278,1e-08,210.56,210.55,26.0]
[1756919452487,0.69,210.68,210.61,13.87991715]
[1756919452771,0.69,210.68,210.61,53.76125466]
[1756919452953,0.69,210.68,210.61,58.42522242]
[1756919454374,0.69,210.68,210.61,63.17333504]
[1756919455069,0.69,210.68,210.61,26.27333504]
[1756919455548,0.69,210.68,210.61,63.15333504]
[1756919456153,0.69,210.68,210.61,26.27333504]
[1756919456352,0.69,210.68,210.61,63.15333504]
[1756919456845,0.69,210.68,210.61,26.27333504]
[1756919457072,0.69,210.68,210.61,63.15333504]
[1756919457270,0.69,210.68,210.61,26.27333504]
[1756919457476,0.69,210.68,210.61,63.13333504]
[1756919458156,0.69,210.68,210.61,26.27333504]
[1756919458357,0.69,210.68,210.61,63.13333504]
[1756919459177,2.98133751,210.71,210.61,63.13333504]
[1756919459357,0.69,210.67,210.61,63.13333504]
[1756919459753,1e-08,210.62,210.61,63.13333504]
[1756919459961,1e-08,210.62,210.61,26.84310855]
[1756919460289,1e-08,210.62,210.61,26.27333504]
[1756919460459,1e-08,210.62,210.61,63.11333504]
[1756919460668,1e-08,210.62,210.61,26.27333504]
[1756919461168,2.98133751,210.74,210.61,26.27333504]
[1756919461169,0.69,210.74,210.65,39.87991715]
[1756919461383,2.98133751,210.81,210.73,28.98133751]
[1756919461555,2.98133751,210.79,210.77,26.0]
[1756919461759,2.98133751,210.79,210.78,36.88]
[1756919462065,2.98133751,210.79,210.78,36.9]
[1756919462458,3.67133751,210.79,210.78,36.9]
[1756919462686,3.67133751,210.79,210.75,26.0]
[1756919462883,3.67133751,210.79,210.76,36.9]
[1756919462884,2.98133751,210.79,210.76,36.9]
[1756919463093,0.69,210.78,210.76,36.9]
[1756919463383,0.69,210.77,210.76,36.9]
[1756919463585,0.69,210.77,210.76,36.88]
[1756919464556,0.69,210.77,210.76,36.9]
[1756919465889,4.74336888,210.83,210.76,36.9]
[1756919466062,0.69,210.79,210.76,39.88133751]
[1756919466683,0.06,210.77,210.76,39.88133751]
[1756919467181,0.75,210.77,210.76,39.88133751]
[1756919467380,0.75,210.77,210.76,36.9]
[1756919467686,0.06,210.77,210.76,39.88133751]
[1756919468181,0.06,210.77,210.76,44.62607085]
[1756919468858,0.06,210.77,210.76,39.88133751]
[1756919469487,0.06,210.77,210.76,2.98133751]
[1756919469900,0.06,210.77,210.76,39.86133751]
[1756919470287,0.06,210.77,210.76,44.60607085]
[1756919470668,0.06,210.77,210.76,61.06717386]
[1756919470986,0.06,210.77,210.76,61.63654186]
[1756919473474,0.06,210.77,210.76,21.77520435]
[1756919473668,0.06,210.77,210.76,61.67654186]
[1756919473881,0.06,210.77,210.76,24.75654186]
[1756919474084,0.06,210.77,210.76,61.67654186]
[1756919474700,0.06,210.77,210.76,61.65654186]
[1756919475302,0.06,210.77,210.76,24.75654186]
[1756919475671,0.06,210.77,210.76,61.65654186]
[1756919477073,0.06,210.77,210.76,83.12151321]
[1756919477282,0.06,210.77,210.76,86.10285072]
[1756919477569,0.06,210.77,210.76,86.38717386]
[1756919478599,0.06,210.77,210.76,49.50717386]
[1756919478983,0.06,210.77,210.76,41.78110301]
[1756919479296,0.73,210.77,210.76,53.45693152]
[1756919479676,0.73,210.77,210.76,58.20166486]
[1756919479884,0.73,210.77,210.76,58.485988]
[1756919480613,0.06,210.77,210.76,58.485988]
[1756919481477,0.06,210.77,210.76,60.15049056]
[1756919482186,0.06,210.77,210.76,60.13049056]
[1756919483397,0.06,210.77,210.76,4.64584007]
[1756919483584,0.73,210.77,210.73,44.34099286]
[1756919483784,0.67,210.76,210.74,36.84]
[1756919484102,0.67,210.75,210.72,4.64584007]
[1756919484397,0.67,210.74,210.73,36.86]
[1756919484596,0.67,210.74,210.72,9.39136068]
[1756919484799,0.67,210.74,210.73,36.86]
[1756919484984,0.67,210.74,210.72,9.39136068]
[1756919485302,0.67,210.76,210.73,4.64584007]
[1756919485520,0.67,210.75,210.74,41.48584007]
[1756919485798,0.67,210.75,210.74,36.84]
[1756919486175,0.67,210.75,210.72,13.59559401]
[1756919486384,0.67,210.74,210.73,36.84]
[1756919486905,5.31584007,210.74,210.73,36.84]
[1756919487516,5.31584007,210.74,210.7,4.74604628]
[1756919487694,4.64584007,210.73,210.71,36.84]
[1756919487901,0.67,210.72,210.69,4.74630974]
[1756919488120,5.31584007,210.71,210.7,36.84]
[1756919488918,0.67,210.71,210.7,36.84]
[1756919489112,4.64584007,210.72,210.7,36.84]
[1756919489301,0.67,210.71,210.7,36.84]
[1756919489502,0.67,210.71,210.69,4.74630974]
[1756919490111,0.67,210.71,210.7,36.82]
[1756919490817,0.67,210.71,210.66,30.74694482]
[1756919490818,5.31584007,210.71,210.66,30.74694482]
[1756919491026,4.74548649,210.73,210.67,36.82]
[1756919491027,4.64584007,210.69,210.67,36.82]
[1756919491191,5.31584007,210.69,210.66,4.74694482]
[1756919491516,0.67,210.68,210.66,4.74694482]
[1756919491714,5.31584007,210.68,210.67,36.82]
[1756919492004,4.64584007,210.69,210.67,36.82]
[1756919492212,5.31584007,210.69,210.67,36.82]
[1756919492816,0.67,210.69,210.67,36.82]
[1756919493905,0.67,210.68,210.67,36.82]
[1756919494810,4.64584007,210.69,210.67,36.82]
[1756919495009,5.31584007,210.69,210.67,36.82]
[1756919495201,5.31584007,210.69,210.67,41.56669073]
[1756919495801,5.31584007,210.69,210.68,36.82]
[1756919496213,26.06,210.77,210.68,36.82]
[1756919496214,0.06,210.77,210.69,13.59559401]
[1756919496393,0.06,210.77,210.73,4.64584007]
[1756919496723,0.06,210.77,210.75,13.87991715]
[1756919496888,0.06,210.77,210.76,36.82]
[1756919497091,0.06,210.77,210.76,41.56473334]
[1756919497693,0.06,210.77,210.76,42.28473334]
[1756919497898,0.06,210.77,210.76,60.81049056]
[1756919498623,0.06,210.77,210.76,88.71131504]
[1756919503721,0.06,210.77,210.76,88.69131504]
[1756919505126,0.06,210.8,210.76,100.5531484]
[1756919505332,0.06,210.8,210.79,18.52575722]
[1756919505515,0.06,210.8,210.79,55.32575722]
[1756919505716,0.06,210.8,210.79,56.02575722]
[1756919507330,0.06,210.8,210.79,60.06981528]
[1756919508035,0.06,210.8,210.79,60.76981528]
[1756919509337,0.06,210.8,210.79,18.62397521]
[1756919509529,0.77,210.8,210.79,55.13965207]
[1756919509729,0.06,210.8,210.79,57.04020561]
[1756919510030,0.06,210.8,210.79,55.42397521]
[1756919510526,0.06,210.8,210.79,60.06981528]
[1756919510925,0.06,210.8,210.79,60.76981528]
[1756919511412,0.06,210.8,210.79,60.06981528]
[1756919514738,0.06,210.8,210.79,60.76981528]
[1756919515119,0.06,210.8,210.79,55.42397521]
[1756919515316,0.06,210.8,210.79,60.76981528]
[1756919515822,0.06,210.8,210.79,60.06981528]
[1756919516431,0.06,210.8,210.79,23.26981528]
[1756919516630,0.06,210.8,210.79,60.06981528]
[1756919516816,0.06,210.8,210.79,55.42397521]
[1756919517014,0.06,210.8,210.79,60.06981528]
[1756919517530,0.77,210.8,210.79,18.62397521]
[1756919517740,0.06,210.8,210.79,55.42397521]
[1756919519238,0.06,210.8,210.79,60.76981528]